[Event "56th Biel Festival MTO 2023"]
[White "Yuffa,Daniil"]
[Black "Jinan Jomon"]
[Site "Biel"]
[Round "2.4"]
[Annotator "RC"]
[Result "1/2-1/2"]
[Date "2023.07.19"]
[WhiteElo "2603"]
[BlackElo "2409"]
[PlyCount "107"]
[TimeControl "60"]

1. c4 {[%emt 0:0:0]} e6 {[%emt 0:0:0]} 2. Nc3 {[%emt 0:0:0]} Nf6 {[%emt 0:0:0]} 3. e4 {[%emt 0:0:0]} e5 {[%emt 0:0:0]} 4. Nf3 {[%emt 0:0:0]} Qe7 {[%emt 0:3:50]} 5. d4 {[%emt 0:0:39]} exd4 {[%emt 0:3:2]} 6. Nxd4 {[%emt 0:0:34]} d6 {[%emt 0:7:0]} 7. Be2 {[%emt 0:13:36]} Qd8 {[%emt 0:29:55]} 8. O-O {[%emt 0:2:17]} Be7 {[%emt 0:0:5]} 9. Be3 {[%emt 0:3:47]} O-O {[%emt 0:1:46]} 10. Qc2 {[%emt 0:3:41]} Ng4 {[%emt 0:6:12]} 11. Bxg4 {[%emt 0:2:30]} Bxg4 {[%emt 0:0:3]} 12. h3 {[%emt 0:11:28]} Bd7 {[%emt 0:4:33]} 13. Rad1 {[%emt 0:5:46]} Nc6 {[%emt 0:12:52]} 14. Nf5 {[%emt 0:1:7]} Bxf5 {[%emt 0:8:31]} 15. exf5 {[%emt 0:0:6]} Re8 {[%emt 0:4:5]} 16. Nd5 {[%emt 0:3:21]} Bf8 {[%emt 0:1:3]} 17. Rfe1 {[%emt 0:14:23]} Ne7 {[%emt 0:2:24]} 18. Nf4 {[%emt 0:14:38]} Nc6 {[%emt 0:0:40]} 19. Nd5 {[%emt 0:3:56]} Ne7 {[%emt 0:0:4]} 20. f6 {[%emt 0:4:13]} Nxd5 {[%emt 0:0:7]} 21. fxg7 {[%emt 0:0:7]} Bxg7 {[%emt 0:0:10]} 22. Rxd5 {[%emt 0:2:9]} Qf6 {[%emt 0:6:34]} 23. Red1 {[%emt 0:1:1]} Re6 {[%emt 0:3:33]} 24. b4 {[%emt 0:5:40]} Qc3 {[%emt 0:1:50]} 25. Qb3 {[%emt 0:1:6]} Qxb3 {[%emt 0:2:41]} 26. axb3 {[%emt 0:0:3]} a6 {[%emt 0:1:8]} 27. g4 {[%emt 0:1:24]} Bc3 {[%emt 0:0:34]} 28. b5 {[%emt 0:0:32]} axb5 {[%emt 0:0:40]} 29. cxb5 {[%emt 0:0:10]} Ra1 {[%emt 0:0:57]} 30. Rxa1 {[%emt 0:1:28]} Bxa1 {[%emt 0:0:1]} 31. b6 {[%emt 0:1:39]} c6 {[%emt 0:1:8]} 32. Ra5 {[%emt 0:0:4]} Bc3 {[%emt 0:0:26]} 33. Ra8+ {[%emt 0:2:30]} Kg7 {[%emt 0:0:2]} 34. Rd8 {[%emt 0:0:20]} d5 {[%emt 0:0:56]} 35. Rd7 {[%emt 0:0:10]} d4 {[%emt 0:0:9]} 36. Bf4 {[%emt 0:0:36]} c5 {[%emt 0:0:29]} 37. Rxb7 {[%emt 0:1:0]} Ba5 {[%emt 0:0:14]} 38. Rxf7+ {[%emt 0:1:24]} Kxf7 {[%emt 0:0:7]} 39. b7 {[%emt 0:0:2]} Rb6 {[%emt 0:0:36]} 40. b8=Q {[%emt 0:0:4]} Rxb8 {[%emt 0:0:5]} 41. Bxb8 {[%emt 0:30:4]} d3 {[%emt 0:3:6]} 42. Kf1 {[%emt 0:0:0]} Ke6 {[%emt 0:0:6]} 43. f4 {[%emt 0:0:0]} Kd5 {[%emt 0:8:44]} 44. f5 {[%emt 0:0:0]} Kd4 {[%emt 0:2:43]} 45. f6 {[%emt 0:0:0]} Bd8 {[%emt 0:10:7]} 46. f7 {[%emt 0:0:0]} Be7 {[%emt 0:0:5]} 47. Ke1 {[%emt 0:0:0]} Kc3 {[%emt 0:0:13]} 48. Bc7 {[%emt 0:0:23]} Kxb3 {[%emt 0:3:40]} 49. Kd2 {[%emt 0:0:4]} c4 {[%emt 0:2:38]} 50. Ba5 {[%emt 0:0:31]} Bg5+ {[%emt 0:2:57]} 51. Kd1 {[%emt 0:0:4]} Be7 {[%emt 0:1:7]} 52. Kd2 {[%emt 0:0:2]} Bg5+ {[%emt 0:1:31]} 53. Kd1 {[%emt 0:0:3]} Be7 {[%emt 0:0:28]} 54. Kd2 {[%emt 0:0:17]} 1/2-1/2

[Event "56th Biel Festival MTO 2023"]
[White "Wessman,Richard"]
[Black "Albornoz Cabrera,Carlos Daniel"]
[Site "Biel"]
[Round "2.5"]
[Annotator "RC"]
[Result "1/2-1/2"]
[Date "2023.07.19"]
[WhiteElo "2410"]
[BlackElo "2591"]
[PlyCount "51"]
[TimeControl "60"]

1. d4 {[%emt 0:0:0]} Nf6 {[%emt 0:0:0]} 2. c4 {[%emt 0:0:0]} e6 {[%emt 0:0:0]} 3. g3 {[%emt 0:0:0]} d5 {[%emt 0:0:0]} 4. Bg2 {[%emt 0:0:0]} Be7 {[%emt 0:0:0]} 5. Nf3 {[%emt 0:0:0]} O-O {[%emt 0:0:0]} 6. O-O {[%emt 0:0:0]} dxc4 {[%emt 0:0:0]} 7. Qc2 {[%emt 0:0:0]} b5 {[%emt 0:0:0]} 8. a4 {[%emt 0:0:0]} b4 {[%emt 0:0:0]} 9. Nbd2 {[%emt 0:0:0]} Bb7 {[%emt 0:0:0]} 10. Nxc4 {[%emt 0:1:1]} c5 {[%emt 0:0:0]} 11. dxc5 {[%emt 0:2:12]} Be4 {[%emt 0:0:0]} 12. Qd1 {[%emt 0:10:10]} Bxc5 {[%emt 0:0:0]} 13. Bg5 {[%emt 0:5:1]} Nc6 {[%emt 0:6:32]} 14. Ncd2 {[%emt 0:6:52]} Bxf3 {[%emt 0:7:48]} 15. Bxf3 {[%emt 0:18:47]} Rc8 {[%emt 0:1:28]} 16. Bxf6 {[%emt 0:2:25]} gxf6 {[%emt 0:4:26]} 17. Nb3 {[%emt 0:7:45]} Ne5 {[%emt 0:6:53]} 18. Bb7 {[%emt 0:3:9]} Rc7 {[%emt 0:0:55]} 19. Qxd8 {[%emt 0:0:31]} Rxd8 {[%emt 0:0:4]} 20. Nxc5 {[%emt 0:14:58]} Rxc5 {[%emt 0:0:11]} 21. Rac1 {[%emt 0:0:27]} Rxc1 {[%emt 0:13:43]} 22. Rxc1 {[%emt 0:0:7]} Rd2 {[%emt 0:0:8]} 23. f4 {[%emt 0:0:54]} Ng4 {[%emt 0:1:51]} 24. Bf3 {[%emt 0:0:10]} f5 {[%emt 0:21:53]} 25. Bxg4 {[%emt 0:2:46]} fxg4 {[%emt 0:0:5]} 26. Kf2 {[%emt 0:0:6]} 1/2-1/2

[Event "56th Biel Festival MTO 2023"]
[White "Harikrishnan.A.Ra"]
[Black "Meshkovs,Nikita"]
[Site "Biel"]
[Round "2.6"]
[Annotator "ChessBase"]
[Result "1-0"]
[Date "2023.07.19"]
[WhiteElo "2406"]
[BlackElo "2565"]
[PlyCount "81"]
[TimeControl "60"]

1. d4 {[%emt 0:0:0]} Nf6 {[%emt 0:0:0]} 2. Nf3 {[%emt 0:0:0]} e6 {[%emt 0:0:0]} 3. c4 {[%emt 0:0:0]} d5 {[%emt 0:0:0]} 4. g3 {[%emt 0:0:0]} Bb4+ {[%emt 0:0:0]} 5. Bd2 {[%emt 0:0:0]} a5 {[%emt 0:0:0]} 6. Bg2 {[%emt 0:0:0]} O-O {[%emt 0:0:0]} 7. Qc2 {[%emt 0:0:0]} Be7 {[%emt 0:5:35]} 8. O-O {[%emt 0:0:0]} c6 {[%emt 0:1:26]} 9. Bf4 {[%emt 0:0:0]} Nbd7 {[%emt 0:1:27]} 10. Rd1 {[%emt 0:0:0]} a4 {[%emt 0:1:7]} 11. Nc3 {[%emt 0:4:8]} Qa5 {[%emt 0:3:9]} 12. c5 {[%emt 0:6:43]} Nh5 {[%emt 0:31:33]} 13. Bd2 {[%emt 0:1:10]} Qa7 {[%emt 0:0:11]} 14. e4 {[%emt 0:2:22]} g6 {[%emt 0:6:40]} 15. Re1 {[%emt 0:14:10]} Re8 {[%emt 0:11:23]} 16. Re2 {[%emt 0:8:54]} Nhf6 {[%emt 0:8:0]} 17. Rae1 {[%emt 0:9:25]} b6 {[%emt 0:3:9]} 18. exd5 {[%emt 0:6:43]} Nxd5 {[%emt 0:0:28]} 19. Nxd5 {[%emt 0:0:34]} cxd5 {[%emt 0:0:2]} 20. c6 {[%emt 0:0:12]} Nf8 {[%emt 0:1:5]} 21. Ne5 {[%emt 0:8:38]} Ba6 {[%emt 0:2:39]} 22. Re3 {[%emt 0:0:36]} f6 {[%emt 0:2:8]} 23. Nd3 {[%emt 0:1:16]} Bc4 {[%emt 0:0:18]} 24. b3 {[%emt 0:6:9]} axb3 {[%emt 0:0:7]} 25. axb3 {[%emt 0:0:4]} Qa2 {[%emt 0:0:8]} 26. Qxa2 {[%emt 0:3:54]} Rxa2 {[%emt 0:0:1]} 27. bxc4 {[%emt 0:0:12]} dxc4 {[%emt 0:0:2]} 28. Bb4 {[%emt 0:8:37]} cxd3 {[%emt 0:1:1]} 29. Bxe7 {[%emt 0:0:22]} d2 {[%emt 0:1:0]} 30. Rf1 {[%emt 0:4:4]} Rxe7 {[%emt 0:0:10]} 31. d5 {[%emt 0:0:4]} Rc2 {[%emt 0:21:55]} 32. d6 {[%emt 0:1:3]} Re8 {[%emt 0:0:2]} 33. Rd3 {[%emt 0:1:49]} e5 {[%emt 0:0:51]} 34. Rd1 {[%emt 0:2:19]} Kf7 {[%emt 0:1:19]} 35. R3xd2 {[%emt 0:0:41]} Rc5 {[%emt 0:0:2]} 36. Rb2 {[%emt 0:4:27]} b5 {[%emt 0:0:49]} 37. d7 {[%emt 0:4:3]} Rd8 {[%emt 0:0:11]} 38. Rxb5 {[%emt 0:1:3]} Rc3 {[%emt 0:0:58]} 39. f4 {[%emt 0:1:5]} exf4 {[%emt 0:0:33]} 40. gxf4 {[%emt 0:0:2]} f5 {[%emt 0:0:28]} 41. Re5 {[%emt 0:30:55]} 1-0

[Event "56th Biel Festival MTO 2023"]
[White "Quesada Perez,Luis Ernesto"]
[Black "Ajay Krishna,S."]
[Site "Biel"]
[Round "2.7"]
[Annotator "ChessBase"]
[Result "1-0"]
[Date "2023.07.19"]
[WhiteElo "2553"]
[BlackElo "2390"]
[PlyCount "59"]
[TimeControl "60"]

1. d4 {[%emt 0:0:0]} d5 {[%emt 0:0:0]} 2. c4 {[%emt 0:0:0]} e6 {[%emt 0:0:0]} 3. Nc3 {[%emt 0:0:0]} c6 {[%emt 0:0:0]} 4. e3 {[%emt 0:0:0]} f5 {[%emt 0:0:0]} 5. Bd3 {[%emt 0:0:0]} Nf6 {[%emt 0:0:0]} 6. Nge2 {[%emt 0:0:0]} Bd6 {[%emt 0:0:0]} 7. Qc2 {[%emt 0:0:0]} O-O {[%emt 0:0:0]} 8. f3 {[%emt 0:0:0]} Kh8 {[%emt 0:1:32]} 9. Bd2 {[%emt 0:0:0]} b6 {[%emt 0:7:4]} 10. O-O {[%emt 0:33:37]} Ba6 {[%emt 0:18:49]} 11. cxd5 {[%emt 0:2:9]} Bxd3 {[%emt 0:0:44]} 12. Qxd3 {[%emt 0:0:2]} exd5 {[%emt 0:1:32]} 13. e4 {[%emt 0:0:42]} dxe4 {[%emt 0:8:8]} 14. fxe4 {[%emt 0:0:2]} fxe4 {[%emt 0:0:34]} 15. Nxe4 {[%emt 0:0:7]} Nxe4 {[%emt 0:0:6]} 16. Rxf8+ {[%emt 0:0:7]} Bxf8 {[%emt 0:0:42]} 17. Qxe4 {[%emt 0:0:7]} Qe7 {[%emt 0:1:15]} 18. Rf1 {[%emt 0:7:47]} Nd7 {[%emt 0:20:5]} 19. Qxc6 {[%emt 0:1:16]} Rd8 {[%emt 0:1:19]} 20. Ng3 {[%emt 0:1:24]} Nb8 {[%emt 0:15:14]} 21. Qf3 {[%emt 0:2:12]} h6 {[%emt 0:0:56]} 22. Bc3 {[%emt 0:3:56]} Qe6 {[%emt 0:6:44]} 23. Nh5 {[%emt 0:0:52]} Kg8 {[%emt 0:5:8]} 24. Qg3 {[%emt 0:1:2]} Qd6 {[%emt 0:6:51]} 25. Nf6+ {[%emt 0:1:2]} Kh8 {[%emt 0:0:5]} 26. Qg6 {[%emt 0:0:5]} gxf6 {[%emt 0:1:59]} 27. Rxf6 {[%emt 0:0:7]} Qd5 {[%emt 0:1:53]} 28. Rf7 {[%emt 0:0:11]} Qxf7 {[%emt 0:0:15]} 29. Qxf7 {[%emt 0:0:8]} Bg7 {[%emt 0:0:25]} 30. d5 {[%emt 0:0:13]} 1-0

[Event "56th Biel Festival MTO 2023"]
[White "Morawietz,Dieter"]
[Black "Liu,Yan"]
[Site "Biel"]
[Round "2.8"]
[Annotator "ChessBase"]
[Result "0-1"]
[Date "2023.07.19"]
[WhiteElo "2396"]
[BlackElo "2542"]
[PlyCount "120"]
[TimeControl "60"]

1. d4 {[%emt 0:0:0]} Nf6 {[%emt 0:0:0]} 2. c4 {[%emt 0:0:0]} e6 {[%emt 0:0:0]} 3. Nf3 {[%emt 0:0:0]} b6 {[%emt 0:0:0]} 4. g3 {[%emt 0:0:0]} Bb7 {[%emt 0:0:0]} 5. Bg2 {[%emt 0:0:0]} Bb4+ {[%emt 0:0:0]} 6. Bd2 {[%emt 0:0:0]} c5 {[%emt 0:0:0]} 7. O-O {[%emt 0:0:0]} O-O {[%emt 0:0:0]} 8. Bxb4 {[%emt 0:0:0]} cxb4 {[%emt 0:0:0]} 9. a3 {[%emt 0:0:0]} bxa3 {[%emt 0:0:0]} 10. Rxa3 {[%emt 0:0:34]} a5 {[%emt 0:0:0]} 11. Nc3 {[%emt 0:1:30]} Na6 {[%emt 0:0:0]} 12. Ne1 {[%emt 0:17:13]} Bxg2 {[%emt 0:1:25]} 13. Nxg2 {[%emt 0:0:6]} d5 {[%emt 0:12:15]} 14. cxd5 {[%emt 0:5:3]} Nxd5 {[%emt 0:0:18]} 15. e4 {[%emt 0:3:52]} Nf6 {[%emt 0:10:33]} 16. Ne3 {[%emt 0:4:24]} Nb4 {[%emt 0:12:40]} 17. g4 {[%emt 0:13:39]} h6 {[%emt 0:10:51]} 18. f4 {[%emt 0:4:31]} Qd7 {[%emt 0:2:16]} 19. h4 {[%emt 0:24:20]} Rfd8 {[%emt 0:3:34]} 20. g5 {[%emt 0:0:9]} hxg5 {[%emt 0:5:17]} 21. hxg5 {[%emt 0:0:28]} Ne8 {[%emt 0:3:15]} 22. d5 {[%emt 0:3:14]} exd5 {[%emt 0:10:50]} 23. Ncxd5 {[%emt 0:0:34]} Qe6 {[%emt 0:1:3]} 24. Qf3 {[%emt 0:2:54]} Nxd5 {[%emt 0:1:0]} 25. exd5 {[%emt 0:7:14]} Qg6 {[%emt 0:1:18]} 26. Qg2 {[%emt 0:2:17]} f6 {[%emt 0:3:46]} 27. Nc4 {[%emt 0:5:54]} Rac8 {[%emt 0:0:49]} 28. Rc3 {[%emt 0:2:7]} Rc5 {[%emt 0:6:5]} 29. Nxb6 {[%emt 0:0:54]} Rxc3 {[%emt 0:0:7]} 30. bxc3 {[%emt 0:0:4]} fxg5 {[%emt 0:0:6]} 31. Nc4 {[%emt 0:0:59]} Qd3 {[%emt 0:0:29]} 32. Qxg5 {[%emt 0:2:33]} Rxd5 {[%emt 0:0:50]} 33. Ne5 {[%emt 0:0:45]} Qe3+ {[%emt 0:1:32]} 34. Kh1 {[%emt 0:0:23]} Rd6 {[%emt 0:6:55]} 35. Qg4 {[%emt 0:1:40]} Qxc3 {[%emt 0:2:12]} 36. Rf2 {[%emt 0:0:32]} Nf6 {[%emt 0:1:4]} 37. Qf3 {[%emt 0:0:28]} Qe1+ {[%emt 0:1:27]} 38. Kg2 {[%emt 0:0:31]} Rd1 {[%emt 0:5:56]} 39. Qb3+ {[%emt 0:0:11]} Rd5 {[%emt 0:0:50]} 40. Qb8+ {[%emt 0:0:44]} Kh7 {[%emt 0:0:8]} 41. Qb3 {[%emt 0:0:0]} Qe4+ {[%emt 0:0:0]} 42. Kg1 {[%emt 0:0:0]} Nh5 {[%emt 0:0:10]} 43. Rf3 {[%emt 0:14:59]} a4 {[%emt 0:3:33]} 44. Qc3 {[%emt 0:1:6]} Rd1+ {[%emt 0:1:39]} 45. Kf2 {[%emt 0:0:7]} Qd4+ {[%emt 0:17:35]} 46. Qxd4 {[%emt 0:0:5]} Rxd4 {[%emt 0:0:3]} 47. Nd3 {[%emt 0:3:16]} a3 {[%emt 0:0:38]} 48. Ke3 {[%emt 0:0:41]} Ra4 {[%emt 0:3:15]} 49. Rf1 {[%emt 0:0:6]} Kg6 {[%emt 0:0:44]} 50. Nc5 {[%emt 0:3:26]} Rxf4 {[%emt 0:3:34]} 51. Rxf4 {[%emt 0:2:57]} Nxf4 {[%emt 0:0:5]} 52. Kxf4 {[%emt 0:0:6]} a2 {[%emt 0:0:12]} 53. Nb3 {[%emt 0:0:3]} Kh5 {[%emt 0:0:15]} 54. Na1 {[%emt 0:1:38]} Kh4 {[%emt 0:0:27]} 55. Kf3 {[%emt 0:0:5]} Kh3 {[%emt 0:1:2]} 56. Nb3 {[%emt 0:1:59]} g5 {[%emt 0:2:18]} 57. Kf2 {[%emt 0:0:7]} Kg4 {[%emt 0:0:10]} 58. Ke3 {[%emt 0:3:12]} Kg3 {[%emt 0:0:42]} 59. Kd3 {[%emt 0:0:15]} g4 {[%emt 0:0:22]} 60. Kc3 {[%emt 0:0:3]} Kf2 {[%emt 0:0:53]} 0-1

[Event "56th Biel Festival MTO 2023"]
[White "Pranav Anand"]
[Black "Jain Kashish Manoj"]
[Site "Biel"]
[Round "2.9"]
[Annotator "ChessBase"]
[Result "1-0"]
[Date "2023.07.19"]
[WhiteElo "2510"]
[BlackElo "2375"]
[PlyCount "91"]
[TimeControl "60"]

1. e4 {[%emt 0:0:0]} c5 {[%emt 0:0:0]} 2. Nf3 {[%emt 0:0:0]} d6 {[%emt 0:0:0]} 3. d4 {[%emt 0:0:0]} cxd4 {[%emt 0:0:0]} 4. Nxd4 {[%emt 0:0:0]} Nf6 {[%emt 0:0:0]} 5. Nc3 {[%emt 0:0:0]} Nc6 {[%emt 0:0:0]} 6. Bg5 {[%emt 0:0:0]} e6 {[%emt 0:0:0]} 7. Qd2 {[%emt 0:0:0]} a6 {[%emt 0:0:0]} 8. O-O-O {[%emt 0:0:0]} Bd7 {[%emt 0:0:0]} 9. Kb1 {[%emt 0:0:0]} Be7 {[%emt 0:0:0]} 10. Nxc6 {[%emt 0:0:0]} Bxc6 {[%emt 0:0:0]} 11. f3 {[%emt 0:0:0]} O-O {[%emt 0:7:0]} 12. h4 {[%emt 0:0:0]} d5 {[%emt 0:27:48]} 13. e5 {[%emt 0:5:0]} Nd7 {[%emt 0:0:9]} 14. f4 {[%emt 0:0:16]} Nc5 {[%emt 0:13:56]} 15. Qe3 {[%emt 0:3:17]} Qc7 {[%emt 0:5:35]} 16. Bd3 {[%emt 0:7:58]} Nxd3 {[%emt 0:4:9]} 17. Qxd3 {[%emt 0:2:9]} Bb4 {[%emt 0:5:37]} 18. Qg3 {[%emt 0:21:14]} Rfc8 {[%emt 0:13:34]} 19. Bf6 {[%emt 0:4:58]} Bf8 {[%emt 0:1:21]} 20. Rh3 {[%emt 0:3:1]} Kh8 {[%emt 0:1:8]} 21. Qg5 {[%emt 0:6:20]} gxf6 {[%emt 0:6:21]} 22. exf6 {[%emt 0:0:39]} Bh6 {[%emt 0:0:7]} 23. Qxh6 {[%emt 0:0:6]} Rg8 {[%emt 0:0:4]} 24. f5 {[%emt 0:12:15]} e5 {[%emt 0:11:29]} 25. Nxd5 {[%emt 0:8:34]} Bxd5 {[%emt 0:0:14]} 26. Rxd5 {[%emt 0:0:2]} Rxg2 {[%emt 0:0:8]} 27. Qc1 {[%emt 0:0:45]} Rag8 {[%emt 0:0:46]} 28. Re3 {[%emt 0:1:23]} Qc4 {[%emt 0:4:26]} 29. Rexe5 {[%emt 0:6:7]} Qxh4 {[%emt 0:0:33]} 30. a3 {[%emt 0:0:17]} Qxf6 {[%emt 0:0:30]} 31. Qe3 {[%emt 0:0:26]} R2g3 {[%emt 0:0:31]} 32. Qc5 {[%emt 0:0:40]} Rg1+ {[%emt 0:0:32]} 33. Ka2 {[%emt 0:0:5]} R1g2 {[%emt 0:0:28]} 34. Rd6 {[%emt 0:1:1]} Qg7 {[%emt 0:0:30]} 35. Re7 {[%emt 0:0:48]} Rg5 {[%emt 0:0:33]} 36. Rxb7 {[%emt 0:0:53]} Qf8 {[%emt 0:0:29]} 37. Qd4+ {[%emt 0:0:56]} Qg7 {[%emt 0:0:12]} 38. Qd5 {[%emt 0:0:15]} Rf8 {[%emt 0:0:23]} 39. Rxa6 {[%emt 0:0:20]} h5 {[%emt 0:0:23]} 40. Rbb6 {[%emt 0:1:14]} f6 {[%emt 0:0:43]} 41. Rb7 {[%emt 0:34:28]} Qg8 {[%emt 0:0:0]} 42. Re6 {[%emt 0:0:0]} h4 {[%emt 0:0:0]} 43. Rb4 {[%emt 0:0:0]} Rh5 {[%emt 0:0:0]} 44. Qf3 {[%emt 0:0:0]} Qh7 {[%emt 0:0:0]} 45. Re7 {[%emt 0:0:0]} Qh6 {[%emt 0:0:0]} 46. Ree4 {[%emt 0:0:0]} 1-0

[Event "56th Biel Festival MTO 2023"]
[White "Seul,Georg"]
[Black "Samant Aditya S"]
[Site "Biel"]
[Round "2.10"]
[Annotator "ChessBase"]
[Result "0-1"]
[Date "2023.07.19"]
[WhiteElo "2376"]
[BlackElo "2510"]
[PlyCount "76"]
[TimeControl "60"]

1. e4 {[%emt 0:0:0]} c5 {[%emt 0:0:0]} 2. Nf3 {[%emt 0:0:0]} Nc6 {[%emt 0:0:0]} 3. Bb5 {[%emt 0:0:0]} e6 {[%emt 0:0:0]} 4. Bxc6 {[%emt 0:0:0]} bxc6 {[%emt 0:0:0]} 5. b3 {[%emt 0:0:0]} f6 {[%emt 0:0:0]} 6. O-O {[%emt 0:4:25]} Ne7 {[%emt 0:0:0]} 7. Ba3 {[%emt 0:5:13]} d6 {[%emt 0:0:0]} 8. d4 {[%emt 0:1:27]} cxd4 {[%emt 0:0:0]} 9. Qxd4 {[%emt 0:0:21]} c5 {[%emt 0:0:0]} 10. Qe3 {[%emt 0:3:48]} Nc6 {[%emt 0:0:0]} 11. Nbd2 {[%emt 0:15:7]} Be7 {[%emt 0:0:0]} 12. Rfd1 {[%emt 0:21:30]} O-O {[%emt 0:0:0]} 13. Nf1 {[%emt 0:4:55]} Qc7 {[%emt 0:22:8]} 14. Bb2 {[%emt 0:0:28]} a5 {[%emt 0:5:45]} 15. a4 {[%emt 0:7:54]} Rb8 {[%emt 0:14:0]} 16. Qe2 {[%emt 0:2:39]} f5 {[%emt 0:23:25]} 17. exf5 {[%emt 0:3:26]} Rxf5 {[%emt 0:0:7]} 18. Ne3 {[%emt 0:10:14]} Rf7 {[%emt 0:0:9]} 19. Rd3 {[%emt 0:2:50]} Ba6 {[%emt 0:7:38]} 20. c4 {[%emt 0:0:24]} Nb4 {[%emt 0:4:18]} 21. Rdd1 {[%emt 0:2:33]} Rbf8 {[%emt 0:3:39]} 22. Rf1 {[%emt 0:5:31]} Bb7 {[%emt 0:8:27]} 23. Nd2 {[%emt 0:0:32]} Bg5 {[%emt 0:4:56]} 24. Rad1 {[%emt 0:1:1]} Bf4 {[%emt 0:2:42]} 25. h3 {[%emt 0:2:54]} d5 {[%emt 0:1:34]} 26. Ng4 {[%emt 0:0:42]} d4 {[%emt 0:0:11]} 27. f3 {[%emt 0:1:41]} h5 {[%emt 0:1:22]} 28. Nf2 {[%emt 0:0:6]} Nc2 {[%emt 0:0:25]} 29. Qxe6 {[%emt 0:1:20]} Ne3 {[%emt 0:0:35]} 30. Nde4 {[%emt 0:0:25]} Bc8 {[%emt 0:2:20]} 31. Qg6 {[%emt 0:1:1]} Bf5 {[%emt 0:0:23]} 32. Qxh5 {[%emt 0:1:8]} Qb6 {[%emt 0:1:53]} 33. Qh4 {[%emt 0:2:2]} Nxd1 {[%emt 0:0:20]} 34. Qxf4 {[%emt 0:1:21]} Nxb2 {[%emt 0:0:25]} 35. Qd2 {[%emt 0:0:20]} Qxb3 {[%emt 0:0:37]} 36. Rb1 {[%emt 0:0:3]} Rb8 {[%emt 0:0:32]} 37. Nd1 {[%emt 0:0:10]} Qxa4 {[%emt 0:0:36]} 38. Rxb2 {[%emt 0:0:49]} Rxb2 {[%emt 0:0:7]} 0-1

[Event "56th Biel Festival MTO 2023"]
[White "Rodrigue-Lemieux,Shawn"]
[Black "Deuer,Marius"]
[Site "Biel"]
[Round "2.11"]
[Annotator "ChessBase"]
[Result "1/2-1/2"]
[Date "2023.07.19"]
[WhiteElo "2495"]
[BlackElo "2374"]
[PlyCount "69"]
[TimeControl "60"]

1. e4 {[%emt 0:0:0]} c5 {[%emt 0:0:0]} 2. Nf3 {[%emt 0:0:0]} d6 {[%emt 0:0:0]} 3. Bb5+ {[%emt 0:0:0]} Bd7 {[%emt 0:0:0]} 4. Bxd7+ {[%emt 0:0:0]} Qxd7 {[%emt 0:0:0]} 5. c4 {[%emt 0:0:0]} Nf6 {[%emt 0:0:0]} 6. Nc3 {[%emt 0:0:0]} Nc6 {[%emt 0:0:0]} 7. d4 {[%emt 0:0:0]} cxd4 {[%emt 0:0:0]} 8. Nxd4 {[%emt 0:0:0]} g6 {[%emt 0:0:0]} 9. h3 {[%emt 0:0:0]} Nxd4 {[%emt 0:0:0]} 10. Qxd4 {[%emt 0:0:0]} Bg7 {[%emt 0:0:0]} 11. Be3 {[%emt 0:0:0]} O-O {[%emt 0:0:57]} 12. Qd3 {[%emt 0:0:0]} Qc6 {[%emt 0:4:34]} 13. Bd4 {[%emt 0:14:51]} Rfc8 {[%emt 0:6:50]} 14. b3 {[%emt 0:0:33]} a6 {[%emt 0:0:25]} 15. Bxf6 {[%emt 0:30:4]} Bxf6 {[%emt 0:4:21]} 16. Nd5 {[%emt 0:0:7]} b5 {[%emt 0:6:11]} 17. Rc1 {[%emt 0:4:29]} bxc4 {[%emt 0:9:40]} 18. Rxc4 {[%emt 0:0:7]} Qb5 {[%emt 0:1:38]} 19. Nxf6+ {[%emt 0:8:37]} exf6 {[%emt 0:0:8]} 20. Rxc8+ {[%emt 0:0:5]} Rxc8 {[%emt 0:0:7]} 21. Qxb5 {[%emt 0:0:6]} axb5 {[%emt 0:0:6]} 22. Kd2 {[%emt 0:0:8]} b4 {[%emt 0:12:46]} 23. Rc1 {[%emt 0:12:17]} Ra8 {[%emt 0:2:52]} 24. Rc2 {[%emt 0:5:20]} Kf8 {[%emt 0:3:22]} 25. Kc1 {[%emt 0:0:5]} Ra7 {[%emt 0:3:4]} 26. Kb2 {[%emt 0:0:8]} Ke7 {[%emt 0:0:27]} 27. Rc8 {[%emt 0:4:9]} Rb7 {[%emt 0:0:51]} 28. g4 {[%emt 0:0:55]} f5 {[%emt 0:12:46]} 29. exf5 {[%emt 0:0:47]} gxf5 {[%emt 0:0:7]} 30. Rh8 {[%emt 0:7:39]} fxg4 {[%emt 0:6:46]} 31. hxg4 {[%emt 0:0:10]} Rb5 {[%emt 0:0:12]} 32. a4 {[%emt 0:4:41]} bxa3+ {[%emt 0:0:57]} 33. Kxa3 {[%emt 0:0:2]} Ra5+ {[%emt 0:0:16]} 34. Kb2 {[%emt 0:1:39]} Re5 {[%emt 0:0:48]} 35. Rc8 {[%emt 0:4:32]} 1/2-1/2

[Event "56th Biel Festival MTO 2023"]
[White "Sukandar,Irine Kharisma"]
[Black "Peng,Xiongjian"]
[Site "Biel"]
[Round "2.12"]
[Annotator "ChessBase"]
[Result "1-0"]
[Date "2023.07.19"]
[WhiteElo "2358"]
[BlackElo "2489"]
[PlyCount "41"]
[TimeControl "60"]

1. e4 {[%emt 0:0:0]} e5 {[%emt 0:0:0]} 2. Nf3 {[%emt 0:0:0]} Nc6 {[%emt 0:0:0]} 3. Bb5 {[%emt 0:0:0]} a6 {[%emt 0:0:0]} 4. Ba4 {[%emt 0:0:0]} Bc5 {[%emt 0:0:0]} 5. c3 {[%emt 0:0:0]} Nge7 {[%emt 0:0:0]} 6. d4 {[%emt 0:0:0]} exd4 {[%emt 0:0:0]} 7. cxd4 {[%emt 0:0:0]} Bb4+ {[%emt 0:0:0]} 8. Nc3 {[%emt 0:0:0]} d5 {[%emt 0:0:0]} 9. e5 {[%emt 0:0:0]} Bg4 {[%emt 0:0:0]} 10. a3 {[%emt 0:0:0]} Ba5 {[%emt 0:0:0]} 11. Be3 {[%emt 0:0:0]} O-O {[%emt 0:7:30]} 12. Bc2 {[%emt 0:0:0]} Nf5 {[%emt 0:1:20]} 13. Qd3 {[%emt 0:7:39]} g6 {[%emt 0:2:5]} 14. O-O-O {[%emt 0:0:25]} Bb6 {[%emt 0:7:44]} 15. Bg5 {[%emt 0:20:45]} Qd7 {[%emt 0:0:26]} 16. Bf6 {[%emt 0:3:33]} Nce7 {[%emt 0:29:39]} 17. h3 {[%emt 0:6:36]} Bxf3 {[%emt 0:0:9]} 18. Qxf3 {[%emt 0:0:44]} c5 {[%emt 0:23:33]} 19. g4 {[%emt 0:10:40]} Ng7 {[%emt 0:2:26]} 20. Bxg7 {[%emt 0:1:40]} Kxg7 {[%emt 0:1:8]} 21. Qf6+ {[%emt 0:0:10]} 1-0

[Event "56th Biel Festival MTO 2023"]
[White "Bharath Subramaniyam H"]
[Black "Besou,Hussain"]
[Site "Biel"]
[Round "2.13"]
[Annotator "ChessBase"]
[Result "1/2-1/2"]
[Date "2023.07.19"]
[WhiteElo "2488"]
[BlackElo "2348"]
[PlyCount "110"]
[TimeControl "60"]

1. d4 {[%emt 0:0:0]} Nf6 {[%emt 0:0:0]} 2. Nf3 {[%emt 0:0:0]} d5 {[%emt 0:0:0]} 3. Bf4 {[%emt 0:0:0]} c5 {[%emt 0:0:0]} 4. c3 {[%emt 0:0:0]} Nc6 {[%emt 0:0:0]} 5. dxc5 {[%emt 0:22:50]} e6 {[%emt 0:6:29]} 6. b4 {[%emt 0:0:35]} a5 {[%emt 0:2:8]} 7. Nd4 {[%emt 0:19:6]} axb4 {[%emt 0:21:33]} 8. Nxc6 {[%emt 0:1:30]} bxc6 {[%emt 0:0:7]} 9. cxb4 {[%emt 0:0:9]} Ne4 {[%emt 0:0:45]} 10. e3 {[%emt 0:4:47]} Qh4 {[%emt 0:11:54]} 11. g3 {[%emt 0:3:2]} Qe7 {[%emt 0:6:34]} 12. Be5 {[%emt 0:3:12]} Qg5 {[%emt 0:1:13]} 13. f4 {[%emt 0:12:25]} Qg6 {[%emt 0:3:40]} 14. Bd3 {[%emt 0:13:20]} f6 {[%emt 0:9:37]} 15. Bc7 {[%emt 0:1:50]} Be7 {[%emt 0:2:33]} 16. Nc3 {[%emt 0:6:3]} f5 {[%emt 0:2:24]} 17. Nxe4 {[%emt 0:2:37]} fxe4 {[%emt 0:0:15]} 18. Be2 {[%emt 0:0:7]} O-O {[%emt 0:0:25]} 19. Be5 {[%emt 0:0:34]} Bf6 {[%emt 0:1:45]} 20. Qd4 {[%emt 0:4:22]} Ra3 {[%emt 0:3:17]} 21. Kf2 {[%emt 0:1:55]} Bd7 {[%emt 0:1:39]} 22. Rhc1 {[%emt 0:1:36]} Qf5 {[%emt 0:2:8]} 23. Bxf6 {[%emt 0:0:8]} Rxf6 {[%emt 0:1:46]} 24. Kg1 {[%emt 0:1:0]} e5 {[%emt 0:1:25]} 25. Qxe5 {[%emt 0:0:0]} Rxe3 {[%emt 0:1:23]} 26. Bf1 {[%emt 0:0:48]} Ra3 {[%emt 0:2:59]} 27. Qb2 {[%emt 0:0:1]} Ra8 {[%emt 0:1:8]} 28. a4 {[%emt 0:0:38]} g5 {[%emt 0:3:9]} 29. Bh3 {[%emt 0:0:35]} Qg6 {[%emt 0:1:20]} 30. fxg5 {[%emt 0:0:54]} Rf7 {[%emt 0:1:5]} 31. Bxd7 {[%emt 0:0:14]} Rxd7 {[%emt 0:0:6]} 32. Qd4 {[%emt 0:0:30]} Qg7 {[%emt 0:2:31]} 33. Rd1 {[%emt 0:0:33]} Rda7 {[%emt 0:1:14]} 34. a5 {[%emt 0:0:33]} Qxd4+ {[%emt 0:0:37]} 35. Rxd4 {[%emt 0:0:0]} Kf7 {[%emt 0:0:15]} 36. Rf1+ {[%emt 0:1:11]} Ke6 {[%emt 0:0:6]} 37. Rf6+ {[%emt 0:0:29]} Ke5 {[%emt 0:0:6]} 38. Rd1 {[%emt 0:0:4]} Rb8 {[%emt 0:0:56]} 39. Rxc6 {[%emt 0:0:48]} Rxb4 {[%emt 0:0:7]} 40. Rc8 {[%emt 0:0:56]} d4 {[%emt 0:1:39]} 41. c6 {[%emt 0:0:0]} Rc4 {[%emt 0:0:0]} 42. Re8+ {[%emt 0:0:0]} Kd5 {[%emt 0:0:0]} 43. Rd8+ {[%emt 0:0:31]} Ke5 {[%emt 0:0:0]} 44. Re8+ {[%emt 0:7:37]} Kd5 {[%emt 0:0:0]} 45. Rd8+ {[%emt 0:0:8]} Ke5 {[%emt 0:0:0]} 46. Rd7 {[%emt 0:0:55]} Rxa5 {[%emt 0:0:0]} 47. Rxh7 {[%emt 0:5:28]} Rac5 {[%emt 0:6:12]} 48. Re7+ {[%emt 0:1:33]} Kd5 {[%emt 0:0:25]} 49. Rd7+ {[%emt 0:0:53]} Ke5 {[%emt 0:0:7]} 50. Re7+ {[%emt 0:0:6]} Kd5 {[%emt 0:0:8]} 51. g6 {[%emt 0:8:4]} Rxc6 {[%emt 0:2:39]} 52. Rd7+ {[%emt 0:0:8]} Ke5 {[%emt 0:0:38]} 53. Re7+ {[%emt 0:0:2]} Kd5 {[%emt 0:7:56]} 54. Rd7+ {[%emt 0:0:17]} Ke5 {[%emt 0:1:7]} 55. Re7+ {[%emt 0:0:2]} Kd5 {[%emt 0:1:48]} 1/2-1/2